bitfinex/quotes_ETHUSD_20250604
["timestamp","ask_amount","ask_price","bid_price","bid_amount"]
[1749017776385,4.67,2621.7,2621.6,9.825]
[1749017778894,4.67,2621.7,2621.6,16.018]
[1749017778895,5.22,2621.7,2621.6,16.018]
[1749017779273,5.22,2621.7,2621.6,16.017]
[1749017780692,5.22,2621.7,2621.6,16.016]
[1749017780894,5.85834,2621.7,2621.6,16.016]
[1749017781093,0.55,2621.6,2621.3,8.229]
[1749017781300,4.67,2621.5,2621.4,1.6]
[1749017782311,4.67,2621.5,2621.4,7.791]
[1749017784513,4.67,2621.5,2621.4,7.789]
[1749017789016,4.67,2621.5,2621.4,1.6]
[1749017789319,4.67,2621.5,2621.4,7.785]
[1749017791101,0.55,2621.4,2621.3,8.229]
[1749017791305,0.55,2621.4,2621.3,16.014]
[1749017792018,0.55,2621.4,2621.3,9.829]
[1749017792222,0.55,2621.4,2621.3,16.015]
[1749017792379,1.2466434,2621.4,2621.3,16.015]
[1749017792584,1.2466434,2621.4,2621.3,9.829]
[1749017792816,1.2466434,2621.4,2621.3,16.015]
[1749017793023,5.9166434,2621.4,2621.3,9.829]
[1749017793179,7.0716434,2621.4,2621.3,9.829]
[1749017795925,7.0716434,2621.4,2621.3,8.229]
[1749017797098,0.55,2621.2,2621.1,1.6]
[1749017797302,6.01599845,2621.2,2621.1,1.6]
[1749017800099,6.01599845,2621.2,2621.1,7.787]
[1749017800595,6.01599845,2621.2,2621.1,7.786]
[1749017802141,6.01599845,2621.2,2621.1,1.6]
[1749017802918,10.68599845,2621.2,2621.1,1.6]
[1749017804001,7.88186434,2621.2,2621.1,1.6]
[1749017804206,4.67,2621.2,2621.1,1.6]
[1749017804520,5.22,2621.2,2621.1,1.6]
[1749017806619,0.55,2621.1,2620.7,0.59565358]
[1749017806826,0.55,2620.9,2620.8,7.78]
[1749017808942,0.55,2620.9,2620.8,9.826]
[1749017809446,0.55,2620.9,2620.8,8.231]
[1749017809649,0.55,2620.9,2620.8,9.826]
[1749017810211,0.55,2620.9,2620.8,16.009]
[1749017811346,0.57,2620.9,2620.8,16.009]
[1749017811850,5.24,2620.9,2620.8,16.009]
[1749017812905,5.24,2620.9,2620.8,16.007]
[1749017815524,5.24,2620.9,2620.8,8.231]
[1749017815760,5.764,2620.9,2620.8,16.005]
[1749017815926,5.24,2620.9,2620.8,16.005]
[1749017817548,5.24,2620.9,2620.8,8.231]
[1749017817763,5.24,2620.9,2620.8,16.005]
[1749017821473,5.24,2620.9,2620.8,9.826]
[1749017821751,5.24,2620.9,2620.8,16.005]
[1749017822982,6.9338,2620.9,2620.8,9.826]
[1749017823330,6.9338,2620.9,2620.8,16.005]
[1749017826562,5.764,2620.9,2620.8,16.005]
[1749017826984,5.24,2620.9,2620.8,16.005]
[1749017831494,4.69,2620.9,2620.8,16.005]
[1749017833377,4.69,2620.9,2620.8,26.005]
[1749017833690,4.69,2620.9,2620.8,27.30742511]
[1749017834091,4.69,2620.9,2620.8,25.09042511]
[1749017834300,4.69,2620.9,2620.8,23.38776511]
[1749017834793,4.69,2620.9,2620.8,20.583631]
[1749017835180,4.69,2620.9,2620.8,23.38776511]
[1749017835555,0.02,2620.9,2620.8,23.38776511]
[1749017835959,0.02,2620.9,2620.8,20.583631]
[1749017839262,0.02,2620.9,2620.8,14.404631]
[1749017839602,0.02,2620.9,2620.8,20.582631]
[1749017840698,0.02,2620.9,2620.8,19.774353]
[1749017841815,0.02,2620.9,2620.8,12.001353]
[1749017841962,0.02,2620.9,2620.8,9.82]
[1749017842159,0.02,2620.9,2620.8,16.003]
[1749017843213,0.55,2621.4,2620.8,18.032364]
[1749017843408,0.55,2621.4,2620.8,16.003]
[1749017844389,0.55,2621.4,2620.8,16.003]
[1749017844584,1.6848,2621.7,2620.8,16.003]
[1749017844929,4.67,2621.6,2620.8,16.003]
[1749017848345,0.55,2621.5,2620.8,16.003]
[1749017850569,0.55,2621.5,2620.9,8.268995]
[1749017851062,0.55,2621.5,2620.9,6.91729]
[1749017851264,0.55,2621.5,2621.1,10.0]
[1749017851463,0.55,2621.5,2621.0,10.0]
[1749017851611,0.55,2621.5,2621.1,10.0]
[1749017851812,0.55,2621.5,2621.0,20.0]
[1749017852161,0.55,2621.5,2621.0,17.385184]
[1749017852359,0.55,2621.5,2621.1,10.0]
[1749017852562,0.55,2621.5,2621.0,8.249534]
[1749017852859,0.55,2621.5,2620.9,2.80413411]
[1749017853062,0.55,2621.5,2621.1,10.0]
[1749017853243,5.22,2621.5,2620.9,2.696337]
[1749017853441,5.742,2621.5,2621.0,17.769]
[1749017853812,5.742,2621.5,2621.0,7.769]
[1749017853813,5.22,2621.5,2621.0,7.769]
[1749017855448,5.22,2621.5,2621.1,8.229]
[1749017856522,1.1849,2621.4,2621.1,8.229]
[1749017856728,1.1849,2621.4,2621.2,6.182]
[1749017857635,0.55,2621.3,2621.1,8.229]
[1749017857814,1.19049,2621.3,2621.2,7.771]
[1749017859312,0.55,2621.3,2621.2,7.771]
[1749017862265,0.55,2621.5,2621.2,7.771]
[1749017863127,0.55,2621.5,2621.2,1.589]
[1749017863333,0.55,2621.3,2621.1,8.229]
[1749017863734,0.55,2621.3,2621.2,7.774]
[1749017863735,1.6716,2621.3,2621.2,7.774]
[1749017864033,2.17417341,2621.3,2621.2,1.591]
[1749017864546,2.17417341,2621.3,2621.2,7.774]
[1749017864547,4.97830752,2621.3,2621.2,7.774]
[1749017866017,4.97830752,2621.3,2621.1,8.229]
[1749017866018,1.7448,2621.2,2621.1,8.229]
[1749017866216,1.7448,2621.2,2621.1,16.005]
[1749017866461,2.30495075,2621.2,2621.1,8.229]
[1749017866770,1.7448,2621.2,2621.1,16.004]
[1749017870259,1.7448,2621.2,2621.1,1.591]
[1749017871019,6.4148,2621.2,2621.1,1.591]
[1749017871454,6.4148,2621.2,2621.1,7.775]
[1749017872761,0.02,2620.9,2620.3,3.575744]
[1749017872967,0.02,2620.9,2620.3,2.057744]
[1749017873121,0.02,2620.9,2620.2,2.745431]
[1749017873321,0.02,2620.9,2620.2,2.262431]
[1749017873627,0.02,2620.9,2620.3,2.80413411]
[1749017873823,0.02,2620.9,2620.4,9.203282]
[1749017874064,0.02,2620.9,2620.6,10.0]
[1749017874372,0.02,2620.9,2620.5,12.400053]
[1749017874678,0.02,2620.9,2620.5,13.435053]
[1749017874886,0.02,2620.9,2620.5,10.0]
[1749017875267,0.02,2620.9,2620.6,9.821]
[1749017877404,1.1504,2620.8,2620.6,8.23]
[1749017877696,0.02,2620.9,2620.6,8.23]
[1749017877697,0.55,2620.7,2620.6,8.23]
[1749017877991,0.55,2620.7,2620.6,16.015]
[1749017878353,0.55,2620.7,2620.6,9.821]
[1749017880075,0.55,2620.7,2620.6,16.015]
[1749017880288,0.55,2620.7,2620.6,8.23]
[1749017880591,0.55,2620.7,2620.6,16.014]
[1749017881765,0.57,2620.9,2620.6,16.014]
[1749017882481,0.57,2620.9,2619.1,1.90859299]
[1749017882793,0.55,2620.7,2620.1,2.945524]
[1749017882955,5.22,2620.7,2620.1,2.945524]
[1749017883653,5.22,2620.7,2620.0,2.80413411]
[1749017883987,5.22,2620.7,2620.2,12.945139]
[1749017884150,5.22,2620.7,2620.3,10.0]
[1749017884351,5.22,2620.7,2620.2,10.0]
[1749017884596,5.22,2620.7,2620.3,10.0]
[1749017884794,5.22,2620.7,2620.1,2.945524]
[1749017884968,5.22,2620.7,2620.2,6.191]
[1749017885171,5.22,2620.7,2620.3,9.821]
[1749017886156,5.22,2620.7,2620.4,6.19]
[1749017886157,4.67,2620.7,2620.4,6.19]
[1749017888097,4.67,2620.7,2620.3,8.23]
[1749017888416,4.67,2620.7,2620.5,7.78]
[1749017888584,0.55,2620.6,2620.3,8.23]
[1749017888812,0.55,2620.6,2620.4,7.78]
[1749017889709,0.55,2620.6,2620.4,1.591]
[1749017889915,0.55,2620.6,2620.5,6.189]
[1749017891026,0.55,2620.6,2620.4,1.591]
[1749017891315,0.55,2620.6,2620.5,6.188]
[1749017892375,0.55,2620.6,2620.4,1.591]
[1749017892574,0.55,2620.6,2620.5,6.187]
[1749017901292,0.55,2620.6,2620.5,6.187]
[1749017901690,0.55,2620.6,2620.4,1.591]
[1749017902003,0.55,2620.6,2620.5,6.18]
[1749017907430,0.55,2620.6,2620.5,14.411]
[1749017912130,0.55,2620.6,2620.5,16.006]
[1749017920658,0.55,2620.6,2620.5,8.231]
[1749017920862,1.17862,2620.6,2620.5,16.0]
[1749017921172,2.26972,2620.6,2620.5,9.82]
[1749017921371,6.93972,2620.6,2620.5,16.0]
[1749017924070,6.93972,2620.6,2620.5,9.82]
[1749017924282,6.93972,2620.6,2620.5,16.0]
[1749017924441,6.93972,2620.6,2620.5,9.82]
[1749017924627,6.93972,2620.6,2620.5,16.0]
[1749017925058,6.93972,2620.6,2620.5,9.82]
[1749017925264,6.93972,2620.6,2620.5,16.0]
[1749017927383,6.93972,2620.6,2620.5,9.82]
[1749017927585,6.93972,2620.6,2620.5,16.0]
[1749017931773,5.84862,2620.6,2620.5,16.0]
[1749017931942,5.22,2620.6,2620.5,16.0]
[1749017935756,5.22,2620.6,2620.5,7.769]
[1749017939454,6.2955,2620.6,2620.5,7.769]
[1749017940500,1.6255,2620.6,2620.5,7.769]
[1749017940992,1.6255,2620.6,2620.5,1.589]
[1749017941298,1.6146,2620.5,2620.4,14.412]
[1749017941500,1.6146,2620.5,2620.4,16.001]
[1749017943703,1.6146,2620.5,2620.4,8.232]
[1749017943867,1.6146,2620.5,2620.4,16.002]
[1749017945196,1.6146,2620.5,2620.4,9.822]
[1749017945588,2.05647341,2620.5,2620.4,9.822]
[1749017946797,4.86060752,2620.5,2620.4,1.59]
[1749017946999,4.41873411,2620.5,2620.4,1.59]
[1749017947463,1.6146,2620.5,2620.4,1.59]
[1749017948113,1.6146,2620.5,2620.4,7.77]
[1749017950115,1.1269,2620.7,2620.4,7.77]
[1749017950477,0.55,2620.6,2620.4,7.77]
[1749017953081,0.02,2620.9,2620.4,7.77]
[1749017953279,0.57,2620.9,2620.4,7.77]
[1749017954845,0.02,2620.9,2620.8,2.80413411]
[1749017955135,0.02,2620.9,2620.6,16.871432]
[1749017955441,0.02,2620.9,2620.6,4.285772]
[1749017957408,0.02,2620.9,2620.8,2.80413411]
[1749017957604,0.02,2620.9,2620.6,3.28030716]
[1749017957820,0.02,2620.9,2620.8,10.0]
[1749017958654,0.02,2620.9,2620.8,7.803]
[1749017959058,0.02,2620.9,2620.8,7.802]
[1749017960359,0.02,2620.9,2620.8,7.801]
[1749017960920,0.02,2620.9,2620.6,2.80413411]
[1749017961131,0.02,2620.9,2620.7,1.589]
[1749017961335,0.02,2620.9,2620.8,7.804]
[1749017961546,0.57,2620.9,2620.8,7.803]
[1749017961961,0.57,2620.9,2620.2,2.80413411]
[1749017962151,0.57,2620.9,2620.3,7.802]
[1749017962545,0.57,2620.9,2620.4,1.589]
[1749017962774,0.55,2620.7,2620.5,1.589]
[1749017963539,0.57,2620.9,2620.5,1.589]
[1749017964554,0.57,2620.9,2620.6,1.589]
[1749017968821,0.55,2620.7,2620.3,6.21]
[1749017969006,0.55,2620.7,2620.4,1.589]
[1749017974957,0.57,2620.9,2620.4,1.589]
[1749017975423,0.57,2620.9,2620.4,4.39313411]
[1749017975937,0.02,2620.9,2620.4,4.39313411]
[1749017979448,0.02,2620.9,2620.5,8.231]
[1749017982468,0.02,2620.9,2620.8,2.80413411]
[1749017982959,0.02,2620.9,2620.8,9.02113411]
[1749017985822,0.02,2620.9,2620.8,6.217]
[1749017988862,0.02,2620.9,2620.8,8.231]
[1749017989071,0.02,2620.9,2620.8,9.834]
[1749017990247,0.02,2620.9,2620.8,16.045]
[1749017990634,0.02,2620.9,2620.8,18.84913411]
[1749017998878,0.02,2620.9,2620.8,16.039]
[1749018001586,0.02,2620.9,2620.8,8.231]
[1749018001792,0.02,2620.9,2620.8,16.037]
[1749018001999,0.02,2620.9,2620.8,9.833]
[1749018002889,0.57,2620.9,2620.8,9.833]
[1749018003389,0.57,2620.9,2620.8,16.037]
[1749018004311,5.24,2620.9,2620.8,16.037]
[1749018004523,5.87069,2620.9,2620.8,16.037]
[1749018005223,5.87069,2620.9,2620.8,16.036]
[1749018007793,5.24,2620.9,2620.8,16.036]
[1749018007993,4.69,2620.9,2620.8,16.036]
[1749018011374,4.69,2620.9,2620.8,18.84013411]
[1749018011927,4.69,2620.9,2620.8,16.036]
[1749018017006,4.69,2620.9,2620.8,18.84013411]
[1749018017525,4.69,2620.9,2620.8,28.53507811]
[1749018018667,4.69,2620.9,2620.8,22.99160211]
[1749018018868,0.02,2620.9,2620.8,22.77279711]
[1749018021898,0.02,2620.9,2620.8,22.76279711]
[1749018026621,0.02,2620.9,2620.8,22.75879711]
[1749018028863,0.02,2620.9,2620.8,23.28156258]
[1749018029194,0.02,2620.9,2620.8,22.75879711]
[1749018031517,0.02,2620.9,2620.8,22.75379711]
[1749018038123,0.02,2620.9,2620.8,14.96679711]
[1749018038382,0.02,2620.9,2620.8,22.75679711]
[1749018040629,1.133,2621.9,2620.8,22.75679711]
[1749018040848,1.133,2621.9,2621.7,2.80413411]
[1749018041125,0.02,2621.9,2621.8,7.79]
[1749018041323,0.02,2621.9,2621.7,2.80413411]
[1749018041557,0.02,2621.9,2621.8,7.791]
[1749018043453,0.02,2621.9,2621.8,7.791]
[1749018044842,1.1345,2621.9,2621.8,7.791]
[1749018046854,1.1345,2621.9,2621.6,2.80413411]
[1749018047059,1.1345,2621.9,2621.8,7.788]
[1749018049546,1.1345,2621.9,2621.8,16.015]
[1749018058195,1.1345,2621.9,2621.8,16.005]
[1749018058791,0.02,2621.9,2621.8,18.80913411]
[1749018063276,0.02,2621.9,2621.8,28.80913411]
[1749018073983,0.02,2621.9,2621.8,21.03113411]
[1749018074200,0.02,2621.9,2621.8,13.726505]
[1749018074488,0.02,2621.9,2621.8,19.13536]
[1749018079736,0.02,2621.9,2621.8,19.13536]
[1749018082394,0.02,2621.9,2621.8,19.12836]
[1749018082728,0.02,2621.9,2621.8,22.107412]
[1749018082932,0.02,2621.9,2621.8,14.339412]
[1749018083137,0.02,2621.9,2621.8,22.107412]
[1749018091025,0.02,2621.9,2621.8,9.816]
[1749018091336,0.02,2621.9,2621.8,8.226]
[1749018091541,0.02,2621.9,2621.8,9.816]
[1749018092239,1.0385,2621.9,2621.8,9.816]
[1749018092413,1.0385,2621.9,2621.8,15.994]
[1749018094363,1.0385,2621.9,2621.8,9.816]
[1749018094564,1.0385,2621.9,2621.8,15.994]
[1749018094761,1.0385,2621.9,2621.8,9.816]
[1749018095270,1.0385,2621.9,2621.8,15.994]
[1749018095453,1.0385,2621.9,2621.8,9.816]
[1749018095766,1.0385,2621.9,2621.8,15.994]
[1749018099130,0.02,2621.9,2621.8,18.79813411]
[1749018099467,0.02,2621.9,2621.8,23.55665411]
[1749018100234,0.02,2621.9,2621.8,18.79813411]
[1749018100546,0.02,2621.9,2621.8,8.226]
[1749018100849,0.02,2621.9,2621.8,15.994]
[1749018104754,0.02,2621.9,2621.8,18.79813411]
[1749018106362,1.0538,2621.9,2621.8,9.816]
[1749018106563,1.6038,2621.9,2621.8,9.816]
[1749018106747,2.04459341,2621.9,2621.8,9.816]
[1749018107378,0.9878,2621.7,2621.2,8.227]
[1749018107538,0.9878,2621.7,2621.3,7.768]
[1749018108984,0.55,2621.6,2621.2,8.227]
[1749018109138,1.5425,2621.4,2621.3,7.769]
[1749018109476,1.97716341,2621.4,2621.3,7.769]
[1749018110381,1.5425,2621.4,2621.3,7.769]
[1749018113593,6.2125,2621.4,2621.3,7.769]
[1749018116767,1.5425,2621.4,2621.3,7.769]
[1749018121312,1.5425,2621.4,2621.3,1.59]
[1749018121632,1.5425,2621.4,2621.3,7.77]
[1749018124923,1.5425,2621.4,2621.2,8.227]
[1749018125235,1.5425,2621.4,2621.3,7.77]
[1749018128428,6.2125,2621.4,2621.3,7.77]
[1749018128623,6.83375,2621.4,2621.3,7.77]
[1749018128955,6.83375,2621.4,2621.3,1.59]
[1749018129167,6.83375,2621.4,2621.3,7.77]
[1749018129376,6.83375,2621.4,2621.2,8.227]
[1749018129514,5.84125,2621.4,2621.3,1.59]
[1749018129720,5.84125,2621.4,2621.3,7.77]
[1749018129939,6.85875,2621.4,2621.3,7.77]
[1749018130137,6.85875,2621.4,2621.3,1.59]
[1749018130336,6.85875,2621.4,2621.3,7.77]
[1749018132562,6.85875,2621.4,2621.3,7.77]
[1749018145400,4.67,2621.4,2621.3,7.77]
[1749018145530,0.02,2621.9,2621.3,7.77]
[1749018145963,0.57,2621.9,2621.3,7.77]
[1749018146271,0.02,2621.9,2621.3,7.77]
[1749018146468,0.57,2621.9,2621.3,7.77]
[1749018147732,0.55,2621.5,2620.9,8.23]
[1749018147951,0.55,2621.5,2621.0,7.77]
[1749018148627,0.55,2621.5,2621.0,1.59]
[1749018148868,0.55,2621.5,2621.1,6.18]
[1749018150959,0.55,2621.5,2621.0,1.59]
[1749018151141,0.55,2621.3,2621.1,6.18]
[1749018152075,4.67,2621.2,2621.1,6.18]
[1749018153476,0.55,2621.1,2621.0,1.59]
[1749018153683,0.55,2621.1,2621.0,7.77]
[1749018156796,5.22,2621.1,2621.0,7.77]
[1749018157201,5.742,2621.1,2621.0,7.77]
[1749018158303,6.7285,2621.1,2620.9,8.23]
[1749018158602,6.7285,2621.1,2621.0,7.77]
[1749018158781,6.7285,2621.1,2621.0,1.59]
[1749018159107,6.7285,2621.1,2621.0,7.77]
[1749018161169,5.742,2621.1,2621.0,7.77]
[1749018169761,5.742,2621.1,2619.1,2.82413411]
[1749018169901,5.742,2621.1,2620.3,2.80413411]
[1749018170102,5.22,2621.1,2620.4,1.59]
[1749018170414,5.22,2621.1,2620.5,8.231]
[1749018171112,5.22,2621.1,2620.6,6.18]
[1749018171875,0.55,2620.9,2620.7,1.59]
[1749018172018,0.55,2620.9,2620.7,7.77]
[1749018172343,1.19591,2620.9,2620.7,7.77]
[1749018172914,1.19591,2620.9,2620.8,6.18]
[1749018174619,1.19591,2620.9,2620.8,6.18]
[1749018175151,1.19591,2620.9,2620.7,1.59]
[1749018175328,1.19591,2620.9,2620.8,6.18]
[1749018175836,0.55,2620.7,2620.5,8.231]
[1749018176015,0.55,2620.7,2620.6,7.77]
[1749018177651,5.22,2620.7,2620.5,8.231]
[1749018177853,0.55,2620.6,2619.1,2.80413411]
[1749018178011,5.22,2620.5,2619.7,2.80413411]
[1749018178344,5.22,2620.5,2619.8,7.77]
[1749018180370,5.22,2620.5,2619.9,6.18]
[1749018181573,6.262,2620.5,2619.9,6.18]
[1749018182069,6.262,2620.5,2620.0,6.181]
[1749018182275,6.97831034,2620.5,2620.0,6.181]
[1749018183069,6.97831034,2620.5,2619.8,1.59]
[1749018183233,6.97831034,2620.5,2619.5,2.80413411]
[1749018183569,1.0405,2620.4,2619.6,7.771]
[1749018183874,1.0405,2620.4,2619.7,6.181]
[1749018184191,2.10870479,2620.4,2619.8,1.59]
[1749018184369,3.84463411,2620.2,2619.9,1.59]
[1749018184569,3.84463411,2620.2,2619.2,2.80413411]
[1749018184570,0.55,2619.9,2618.9,2.80413411]
[1749018184787,0.55,2619.9,2619.0,1.59]
[1749018184995,0.55,2619.7,2619.1,1.59]
[1749018185173,2.80413411,2619.6,2619.2,1.59]
[1749018185342,0.55,2619.7,2619.2,7.771]
[1749018187482,1.0644,2620.2,2619.3,2.80413411]
[1749018187685,1.0644,2620.2,2619.4,10.0]
[1749018188156,0.55,2620.1,2619.4,10.0]
[1749018190501,0.55,2620.1,2619.5,6.181]
[1749018190718,0.55,2619.9,2619.5,6.181]
[1749018190915,1.0644,2620.2,2619.5,8.98513411]
[1749018190916,0.55,2620.1,2619.5,8.98513411]
[1749018191413,0.55,2620.1,2619.5,6.181]
[1749018195434,1.5979,2620.5,2619.5,8.98513411]
[1749018195609,2.03810341,2620.5,2619.5,8.98513411]
[1749018198135,1.5979,2620.5,2619.8,10.0]
[1749018198314,1.5979,2620.5,2619.9,1.59]
[1749018199544,6.2679,2620.5,2619.9,1.59]
[1749018201412,6.2679,2620.5,2619.9,4.39413411]
[1749018202345,6.2679,2620.5,2619.9,1.59]
[1749018202735,6.2679,2620.5,2620.0,8.233]
[1749018204461,6.2679,2620.5,2620.1,6.181]
[1749018204655,6.89469,2620.5,2620.1,6.181]
[1749018206222,6.2679,2620.5,2620.1,6.181]
[1749018206449,1.0161,2620.9,2620.1,8.98513411]
[1749018206635,0.55,2620.8,2620.1,8.98513411]
[1749018208666,1.0161,2620.9,2620.4,10.0]
[1749018208866,1.0161,2620.9,2620.5,1.59]
[1749018213289,0.02,2620.9,2620.5,4.39413411]
[1749018213635,0.02,2620.9,2620.5,1.59]
[1749018215195,1.0191,2620.8,2620.5,1.59]
[1749018215487,1.0191,2620.8,2620.6,7.769]
[1749018215841,0.02,2620.9,2620.6,7.769]
[1749018216041,0.57,2620.9,2620.6,7.769]
[1749018217777,0.57,2620.9,2620.7,6.179]
[1749018218299,0.9929,2620.8,2620.6,1.589]
[1749018218585,0.55,2620.7,2620.5,6.179]
[1749018218739,0.98670341,2620.7,2620.6,1.589]
[1749018221535,1.99710341,2620.7,2620.6,1.589]
[1749018223089,6.66710341,2620.7,2620.6,1.589]
[1749018226572,0.02,2620.9,2620.6,1.589]
[1749018227148,0.57,2620.9,2620.6,1.589]
[1749018232087,5.24,2620.9,2620.6,1.589]
[1749018236903,5.24,2620.9,2620.7,8.232]
[1749018243342,5.24,2620.9,2620.8,1.589]
[1749018250550,5.764,2620.9,2620.8,7.767]
[1749018254548,1.094,2620.9,2620.8,7.767]
[1749018254755,0.02,2620.9,2620.8,7.767]
[1749018256252,0.02,2620.9,2620.8,1.589]
[1749018257344,0.02,2620.9,2620.8,7.767]
[1749018259315,0.02,2620.9,2620.8,1.589]
[1749018259519,0.02,2620.9,2620.8,7.767]
[1749018261323,0.02,2620.9,2620.8,15.998]
[1749018268247,0.02,2620.9,2620.8,9.82]
[1749018268451,0.02,2620.9,2620.8,15.998]
[1749018268452,1.0675,2620.9,2620.8,15.998]
[1749018269031,0.02,2620.9,2620.8,15.998]
[1749018270351,4.69,2620.9,2620.8,15.998]
[1749018270721,5.32238,2620.9,2620.8,15.998]
[1749018271450,4.69,2620.9,2620.8,15.998]
[1749018274000,4.69,2620.9,2620.8,15.996]
[1749018278167,5.24,2620.9,2620.8,9.819]
[1749018278368,5.24,2620.9,2620.8,15.996]
[1749018279307,5.24,2620.9,2620.8,7.765]
[1749018280391,0.55,2620.8,2620.7,8.231]
[1749018280586,0.55,2620.8,2620.7,9.819]
[1749018281640,0.55,2620.8,2620.7,15.996]
[1749018284248,0.55,2620.8,2620.1,2.80413411]
[1749018284442,0.55,2620.8,2620.2,5.160627]
[1749018284646,0.55,2620.8,2620.3,10.0]
[1749018285144,0.55,2620.8,2620.2,5.160627]
[1749018285445,0.55,2620.8,2620.4,9.819]
[1749018286700,0.55,2620.8,2620.5,6.177]
[1749018287620,4.69,2620.9,2620.5,6.177]
[1749018287825,0.55,2620.8,2620.5,6.177]
[1749018290138,0.55,2620.8,2620.6,1.588]
[1749018294948,0.55,2620.8,2620.7,8.231]
[1749018299755,0.55,2620.8,2620.7,9.819]
[1749018300762,2.0884,2620.8,2620.7,8.231]
[1749018301060,2.0884,2620.8,2620.7,15.995]
[1749018301635,4.69,2620.9,2620.7,15.995]
[1749018303863,4.69,2620.9,2620.8,6.176]
[1749018309490,5.7589,2620.9,2620.8,7.764]
[1749018310750,4.69,2620.9,2620.8,7.764]
[1749018311983,0.02,2620.9,2620.8,7.764]
[1749018314374,0.02,2620.9,2620.8,14.55175]
[1749018318111,0.02,2620.9,2620.8,17.11050974]
[1749018318298,0.00249658,2620.9,2620.8,17.11050974]
[1749018319015,0.02,2621.9,2620.8,17.11050974]
[1749018319308,0.02,2621.9,2621.8,10.0]
[1749018319491,0.02,2621.9,2621.8,17.761]
[1749018331018,0.02,2621.9,2621.8,25.988]
[1749018335303,0.02,2621.9,2621.8,18.23933708]
[1749018342412,0.02,2621.9,2621.8,25.627984]
[1749018342935,0.02,2621.9,2621.8,25.356525]
[1749018344312,0.02,2621.9,2621.8,19.182525]
[1749018344508,0.02,2621.9,2621.8,20.76546]
[1749018353411,0.02,2621.9,2621.8,14.59546]
[1749018353615,0.02,2621.9,2621.8,13.00846]
[1749018353915,0.02,2621.9,2621.8,15.982]
[1749018355389,0.02,2621.9,2621.8,25.982]
[1749018358328,0.02,2621.9,2621.8,23.387815]
[1749018363985,0.02,2621.9,2621.8,17.217815]
[1749018364154,0.02,2621.9,2621.8,9.812]
[1749018364346,0.02,2621.9,2621.8,15.981]
[1749018364542,0.9816,2621.9,2621.8,15.981]
[1749018367555,0.9816,2621.9,2621.8,9.812]
[1749018367748,0.9816,2621.9,2621.8,15.981]
[1749018369570,0.02,2621.9,2621.8,18.53975974]
[1749018370088,0.02,2621.9,2621.8,25.61293274]
[1749018370270,0.02,2621.9,2621.8,24.69493274]
[1749018376973,0.02,2621.9,2621.8,22.17259474]
[1749018377535,0.02,2621.9,2621.8,16.00459474]
[1749018377676,0.02,2621.9,2621.8,22.17259474]
[1749018382984,0.02,2621.9,2621.8,22.17159474]
[1749018388324,0.02,2621.9,2621.8,16.00359474]
[1749018388528,0.02,2621.9,2621.8,22.17159474]
[1749018391531,0.02,2621.9,2621.8,16.00359474]
[1749018391734,0.02,2621.9,2621.8,22.17059474]
[1749018401241,0.02,2621.9,2621.8,16.00359474]
[1749018401442,0.02,2621.9,2621.8,22.17059474]
[1749018409918,0.02,2621.9,2621.8,22.16959474]
[1749018413652,0.02,2621.9,2621.8,24.72835448]
[1749018413857,0.02,2621.9,2621.8,22.16959474]
[1749018414022,0.02,2621.9,2621.8,24.72835448]
[1749018414354,0.02,2621.9,2621.8,22.16959474]
[1749018420068,0.02,2621.9,2621.8,14.41959474]
[1749018420387,0.02,2621.9,2621.8,22.16759474]
[1749018421561,0.02,2621.9,2621.8,16.00259474]
[1749018421763,0.02,2621.9,2621.8,22.16759474]
[1749018421975,0.02,2621.9,2621.8,14.41959474]
[1749018422195,0.02,2621.9,2621.8,15.79245274]
[1749018422374,0.02,2621.9,2621.8,20.94653474]
[1749018423033,0.02,2621.9,2621.8,13.19853474]
[1749018423380,0.02,2621.9,2621.8,20.94653474]
[1749018424879,0.02,2621.9,2621.8,13.19853474]
[1749018425179,0.02,2621.9,2621.8,20.94653474]
[1749018428801,0.02,2621.9,2621.8,12.36675974]
[1749018429026,0.02,2621.9,2621.8,22.36675974]
[1749018429909,0.02,2621.9,2621.8,28.53175974]
[1749018434884,0.02,2621.9,2621.8,31.09051948]